[Event "ESP-ch Teams Honor 2024"]
[Site "Melilla"]
[Date "2024.10.15"]
[Round "4.4"]
[White "Muzychuk, Anna"]
[Black "Del Rio De Angelis, Salvador G."]
[Result "1/2-1/2"]
[ECO "B01"]
[WhiteElo "2524"]
[BlackElo "2387"]
[Annotator "TA"]
[PlyCount "69"]
[EventDate "2024.10.11"]
[EventType "team-tourn"]
[EventCountry "ESP"]
[SourceTitle "playchess.com"]
[Source "ChessBase"]
[SourceQuality "1"]
[WhiteTeam "Costa Calida"]
[BlackTeam "SESTAO HOTEL NAVAL"]
[TimeControl "5400+30"]

{[%evp 19,69,39,53,50,44,53,50,56,49,57,56,33,22,18,38,18,17,11,17,19,22,23,29,34,29,0,0,0,7,7,7,0,0,1,1,0,0,0,4,9,15,14,54,45,87,40,63,49,62,0,53,0]} 1. e4 {[%emt 0:00:02]} d5 {[%emt 0:00:16]} 2. exd5 {[%emt 0:00:11]} Qxd5 {[%emt 0:00:12]} 3. Nc3 {[%emt 0:00:07]} Qa5 {[%emt 0:00:07]} 4. d4 {[%emt 0:00:23]} Nf6 {[%emt 0:00:17]} 5. Nf3 {[%emt 0:00:41]} c6 {[%emt 0:00:22]} 6. Bc4 {[%emt 0:01:12]} Bf5 {[%emt 0:00:19]} 7. Ne5 {[%emt 0:02:19]} e6 {[%emt 0:00:16]} 8. g4 {[%emt 0:00:55]} Bg6 {[%emt 0:00:30]} 9. h4 {[%emt 0:02:17][%cal Bh2h4,Bh4h5][%mdl 32]} Nbd7 {[%emt 0:00:10]} 10. Nxd7 {[%emt 0:01:37]} Nxd7 {[%emt 0:00:09]} 11. h5 {[%emt 0:01:12]} Be4 {[%emt 0:00:09]} 12. O-O {[%emt 0:00:21]} Bd5 {[%emt 0:00:09]} 13. Nxd5 {[%emt 0:00:47]} cxd5 {[%emt 0:00:10]} 14. Bd3 {[%emt 0:00:10]} g6 {[%emt 0:00:09]} 15. h6 {[%emt 0:07:47]} Bd6 {[%emt 0:00:25]} 16. f4 {[%emt 0:19:02]} O-O {[%emt 0:05:51]} 17. a4 {[%emt 0:02:42]} Nf6 {[%emt 0:02:24]} 18. Qe2 {[%emt 0:00:22]} Qb6 {[%emt 0:00:12]} 19. c3 {[%emt 0:10:14]} Qc6 {[%emt 0:02:27]} 20. Re1 Qc7 {[%emt 0:00:10]} 21. Qf3 {[%emt 0:01:07]} Rae8 {[%emt 0:17:59]} 22. Kg2 Ne4 {[%emt 0:00:30][%cal Oe4c3]} 23. Be3 {[%emt 0:27:11]} f5 {[%emt 0:01:51][%cal Og6g5] [#] And now ...g5! would win.} 24. g5 $1 {[%emt 0:00:07]} a6 {[%emt 0:01:47]} 25. Rec1 {[%emt 0:02:04]} b5 {[%emt 0:02:33]} 26. axb5 {[%emt 0:01:35]} axb5 {[%emt 0:00:08]} 27. Qf1 {[%emt 0:00:30]} Rb8 {[%emt 0:07:37]} 28. Ra6 {[%emt 0:02:06]} Rb6 {[%emt 0:04:05]} 29. Rca1 {[%emt 0:02:53]} Rfb8 {[%emt 0:09:00]} 30. R1a5 {[%emt 0:04:26]} Rxa6 {[%emt 0:16:29]} 31. Rxa6 {[%emt 0:00:01]} Qd7 {[%emt 0:00:14] [#]} 32. Qa1 {[%emt 0:06:42]} (32. Ra5 $1 $16) 32... Bf8 {[%emt 0:00:36]} 33. Ra7 {[%emt 0:01:53]} Qc6 {[%emt 0:02:31]} 34. Ra6 {[%emt 0:00:53] White has more active pieces.} Qd7 {[%emt 0:00:10]} 35. Ra7 {[%emt 0:00:25] Weighted Error Value: White=0.09 (flawless) /Black=0.08 (flawless) .  Mistake:       	White=2     	---        Inaccurate:     	White=1     	Black=2      OK:         	White=9     	Black=11     Strong:       	White=1     	---} (35. Qa5 $14) 1/2-1/2

[Event "ESP-ch Teams Honor 2024"]
[Site "Melilla"]
[Date "2024.10.15"]
[Round "4.5"]
[White "Trigo Urquijo, Sergio"]
[Black "Cuenca Jimenez, Jose Fernando"]
[Result "1/2-1/2"]
[ECO "E73"]
[WhiteElo "2384"]
[BlackElo "2480"]
[Annotator "TA"]
[PlyCount "94"]
[EventDate "2024.10.11"]
[EventType "team-tourn"]
[EventCountry "ESP"]
[SourceTitle "playchess.com"]
[Source "ChessBase"]
[SourceQuality "1"]
[WhiteTeam "Sestao"]
[BlackTeam "Costa Calida"]
[TimeControl "5400+30"]

{[%evp 11,94,52,46,22,21,27,24,16,24,25,37,0,0,4,15,18,10,0,0,0,0,8,50,0,5,0,0,0,0,0,2,0,6,7,4,10,16,11,25,0,0,0,60,0,0,0,0,0,0,0,0,0,0,0,0,0,0,0,0,0,0,0,0,0,0,0,0,0,0,0,0,0,0,0,0,0,0,0,0,0,0,0,0,0,8]} 1. d4 {[%emt 0:00:08]} Nf6 {[%emt 0:00:16]} 2. c4 {[%emt 0:00:26]} g6 {[%emt 0:00:24]} 3. Nc3 {[%emt 0:00:50]} Bg7 {[%emt 0:00:18]} 4. e4 {[%emt 0:00:35]} d6 {[%emt 0:00:05]} 5. Be2 {[%emt 0:01:52]} O-O {[%emt 0:02:07]} 6. Be3 {[%emt 0:00:18]} Nc6 {[%emt 0:00:38]} 7. Nf3 {[%emt 0:03:40]} Ng4 {[%emt 0:01:03]} 8. Bg5 {[%emt 0:00:44]} h6 {[%emt 0:01:12]} 9. Bh4 {[%emt 0:00:53] White has an edge.} g5 {[%emt 0:00:11]} 10. Bg3 {[%emt 0:00:12]} e5 {[%emt 0:01:55]} 11. dxe5 {[%emt 0:03:35]} Ngxe5 {[%emt 0:00:48]} 12. h4 {[%emt 0:02:31]} Be6 {[%emt 0:01:13]} 13. hxg5 {[%emt 0:03:12]} hxg5 {[%emt 0:01:00]} 14. Qd2 {[%emt 0:01:41]} Nxc4 {[%emt 0:01:43]} 15. Bxc4 {[%emt 0:01:17]} Bxc4 {[%emt 0:00:04]} 16. Nxg5 {[%emt 0:00:33]} (16. Qxg5 Qxg5 17. Nxg5 f6 $17) 16... d5 {[%emt 0:00:03]} 17. Nxd5 {[%emt 0:22:49]} (17. exd5 $2 Re8+ $17) (17. b3 $5 d4 18. Na4 $14) 17... Bxd5 {[%emt 0:05:14]} 18. exd5 {[%emt 0:02:03][%cal Od2c2]} (18. Qxd5 {simplifies} Qxd5 19. exd5 Rfe8+ 20. Kf1) 18... Re8+ {[%emt 0:03:36]} 19. Kf1 {[%emt 0:00:17][%cal Og5f7] Hoping for Nxf7!} Nd4 {[%emt 0:02:01]} 20. Rh5 {[%emt 0:08:52]} Qxd5 {[%emt 0:12:15]} 21. Qd3 $36 {[%emt 0:01:35][%cal Oa1d1][%mdl 2048] Prevents Qc4. White fights for an advantage.} (21. Bxc7 $2 {loses.} Qc4+ 22. Kg1 Qxc7 $19) 21... Qf5 {[%emt 0:18:39]} 22. Qxf5 {[%emt 0:04:22]} Nxf5 {[%emt 0:00:04]} 23. Bxc7 {[%emt 0:00:42][%cal Og5f7]} Rac8 {[%emt 0:02:12]} 24. Bf4 {[%emt 0:03:48][%cal Og5f7]} Rc2 {[%emt 0:12:33]} 25. Nxf7 {[%emt 0:13:44]} Bd4 $1 {[%emt 0:04:28]} 26. Rxf5 {[%emt 0:01:21]} Rxf2+ {[%emt 0:00:15]} 27. Kg1 {[%emt 0:00:06] [#] Kh2 is the strong threat.} Rxf4+ {[%emt 0:01:56] The position is equal.} 28. Kh2 {[%emt 0:00:09]} Be3 {[%emt 0:22:03]} (28... Bxb2 29. Nh6+ Kh7 30. Rxf4 $19) ({Not} 28... Bg1+ $2 29. Kxg1 Rxf5 30. Nh6+ Kh8 31. Nxf5 $18) (28... Rxf5 $5 29. Nh6+ $8 Kh7 30. Nxf5 Bxb2 $11) 29. Rf1 {[%emt 0:08:25]} Rxf5 {[%emt 0:03:28]} 30. Rxf5 $11 {[%emt 0:00:06][%mdl 4096] Endgame. KRB-KRN} Rf8 {[%emt 0:00:01]} 31. Rf3 {[%emt 0:01:09]} Bc1 {[%emt 0:00:21]} 32. Rf1 {[%emt 0:01:01]} Bxb2 {[%emt 0:02:04]} (32... Bg5 $5 33. Rf5 $8 Bc1 $11) 33. Nh6+ {[%emt 0:01:57]} Kg7 {[%emt 0:00:05]} 34. Rxf8 {[%emt 0:01:06]} Kxf8 {[%emt 0:00:01] KB-KN} 35. Nf5 {[%emt 0:00:49]} Be5+ {[%emt 0:01:51]} 36. Kg1 {[%emt 0:00:14]} Kf7 {[%emt 0:00:03]} 37. Kf1 {[%emt 0:00:31]} Ke6 {[%emt 0:00:10]} 38. Ne3 {[%emt 0:00:47]} b5 {[%emt 0:00:09]} 39. Ke2 {[%emt 0:00:22]} Kd6 {[%emt 0:00:15]} 40. Kd3 {[%emt 0:04:03]} Kc5 {[%emt 0:00:04]} 41. g4 {[%emt 0:00:29]} Bf6 {[%emt 0:01:05]} 42. Nf5 {[%emt 0:01:08]} a5 {[%emt 0:00:36]} 43. Kc2 $1 {[%emt 0:00:34]} Bg5 {[%emt 0:01:01]} 44. Ng3 {[%emt 0:01:04]} Kd5 {[%emt 0:00:48] Repels Ne4} 45. Nf5 {[%emt 0:00:16]} Bf4 {[%emt 0:01:02]} 46. Kb3 {[%emt 0:00:19]} Kc5 {[%emt 0:01:09]} 47. a4 {[%emt 0:00:16]} bxa4+ {[%emt 0:00:22] An even fight not without its subleties.   Weighted Error Value: White=0.04 (flawless) /Black=0.04 (flawless) .  Inaccurate:     	White=3     	Black=1      OK:         	White=25    	Black=13     Best:        	White=3     	Black=4      Strong:       	White=1     	Black=1} 1/2-1/2

[Event "ESP-ch Teams Honor 2024"]
[Site "Melilla"]
[Date "2024.10.15"]
[Round "4.6"]
[White "Camacho Collados, Marcos"]
[Black "Ambartsumova, Karina"]
[Result "1/2-1/2"]
[ECO "A05"]
[WhiteElo "2453"]
[BlackElo "2402"]
[Annotator "TA"]
[PlyCount "133"]
[EventDate "2024.10.11"]
[EventType "team-tourn"]
[EventCountry "ESP"]
[SourceTitle "playchess.com"]
[Source "ChessBase"]
[SourceQuality "1"]
[WhiteTeam "Costa Calida"]
[BlackTeam "Sestao"]
[TimeControl "5400+30"]

{[%evp 18,133,56,0,15,-29,0,-8,0,0,0,-61,13,-17,23,0,95,89,75,80,82,73,81,66,106,104,113,49,49,47,56,53,61,64,175,128,124,117,118,119,119,119,119,126,119,119,124,123,121,123,125,92,123,131,136,46,117,117,190,117,115,125,115,117,160,146,155,64,64,64,64,64,64,64,64,64,64,64,64,64,64,64,64,64,64,0,0,0,93,0,0,0,1276,0,0,0,0,0,0,0,535,0,0,0,0,0,0,0,0,0,0,0,0,0,0,0,0,0]} 1. Nf3 {[%emt 0:00:03]} d5 {[%emt 0:00:51]} 2. g3 {[%emt 0:00:22]} Nf6 {[%emt 0:00:51]} 3. Bg2 {[%emt 0:00:18]} g6 {[%emt 0:00:48]} 4. O-O {[%emt 0:03:00]} Bg7 {[%emt 0:00:51]} 5. d3 {[%emt 0:00:12]} O-O {[%emt 0:01:23]} 6. Nbd2 {[%emt 0:00:05]} c5 {[%emt 0:01:29]} 7. e4 {[%emt 0:00:24]} dxe4 {[%emt 0:01:11]} 8. dxe4 {[%emt 0:00:06]} Nc6 {[%emt 0:01:02]} 9. c3 {[%emt 0:00:45]} Qc7 {[%emt 0:06:45]} 10. Qc2 {[%emt 0:03:23]} (10. Nc4 $1 $14) 10... h6 {[%emt 0:06:35] A08: Konings-Indisch Aanval.} 11. Re1 {[%emt 0:13:27] Onnauwkeurig} e5 {[%emt 0:04:13]} 12. b4 {[%emt 0:07:15] OK} a6 $146 {[%emt 0:20:11]} ({Predecessor:} 12... Be6 13. bxc5 Nd7 14. Nb3 Na5 15. Nfd2 Rfc8 16. Ba3 Bf8 17. Bb4 Nxb3 18. Nxb3 Bc4 {½-½ Dignam,M (2116)-Cont,A (1954) London Mindsports FM 2022 (8.1)}) 13. bxc5 {[%emt 0:03:56] Beste (Gemakkelijk)} Be6 {[%emt 0:06:02] Stopt Nc4. OK} 14. Ba3 {[%emt 0:18:15] Fout (0.6)} (14. Nb3 $11) {Zwart zou moeten spelen} 14... Nd7 {[%emt 0:02:02] Fout (0.7)} (14... Rfc8 $15) 15. Bf1 $11 {[%emt 0:07:30] OK} Rfc8 {[%emt 0:07:09] Onnauwkeurig} 16. Bc4 {[%emt 0:02:12]} Bxc4 {[%emt 0:02:26] Houdt de partij in balans. Fout (1.0)} (16... Nd8 $11) 17. Nxc4 $16 {[%emt 0:00:04][%cal Bd2c4,Bc4e3,Be3d5][%mdl 32] EV=11.85} Na5 {[%emt 0:00:07] OK} 18. Ne3 {[%emt 0:00:46] OK} Nxc5 {[%emt 0:06:12] OK} 19. Nd5 {[%emt 0:01:15]} Qd8 {[%emt 0:00:05] OK} 20. Nd2 {[%emt 0:01:55] Afleidend Nc4. Wit is actiever. OK} b5 {[%emt 0:03:05] Onnauwkeurig} 21. Bxc5 {[%emt 0:01:14] OK} Rxc5 {[%emt 0:00:08]} 22. Nb3 {[%emt 0:00:22] Fout (0.6)} (22. a4 $16) 22... Nxb3 $14 {[%emt 0:03:46] OK} 23. axb3 {[%emt 0:00:05]} Qd6 {[%emt 0:04:09] OK} 24. Red1 {[%emt 0:00:21]} Qe6 {[%emt 0:00:47]} 25. Ra5 {[%emt 0:11:01] OK} f5 {[%emt 0:04:44] Fout (1.1)} (25... Bf6 $1 $14) 26. b4 {[%emt 0:03:34] Fout (0.5)} (26. Qa2 $18) 26... Rc6 $16 {[%emt 0:03:18] Beste} 27. exf5 {[%emt 0:04:13] OK} gxf5 {[%emt 0:00:12] [#]} 28. Qxf5 {[%emt 0:00:14][%mdl 512] Briljant} Qxf5 {[%emt 0:01:57]} 29. Ne7+ {[%emt 0:00:03] Beste (Gemakkelijk)} Kf7 {[%emt 0:06:00] OK} 30. Nxf5 {[%emt 0:00:04] OK} Rxc3 {[%emt 0:02:08] OK} 31. Nxg7 {[%emt 0:06:33] OK} Kxg7 {[%emt 0:00:04][%mdl 4096] Eindspel. KRR-KRR} 32. Rd7+ {[%emt 0:00:11] OK} Kg6 {[%emt 0:01:12] OK} 33. Rd6+ {[%emt 0:00:08] OK} Kg7 {[%emt 0:02:40] OK} 34. Re6 {[%emt 0:06:59]} ({Veel minder sterk is} 34. Rdxa6 Rxa6 35. Rxa6 Rc4 $18) 34... Rc4 {[%emt 0:00:28] Onnauwkeurig} 35. Rxe5 {[%emt 0:00:05] Beste (Gemakkelijk)} Rxb4 {[%emt 0:00:27] Beste} 36. h4 {[%emt 0:01:16] Fout (0.9)} (36. Re6 $1 $16) 36... Rb1+ {[%emt 0:02:04] Fout (0.7)} (36... Rb2 $1 $14) 37. Kg2 {[%emt 0:00:01] Beste (Gemakkelijk)} b4 {[%emt 0:00:57] was hoogst noodzakelijk. Fout (0.7)} (37... Ra7 $16) 38. Re6 {[%emt 0:00:41] Fout (0.7)} (38. Re7+ $18 Kf6 39. Rh7) 38... b3 {[%emt 0:00:32] OK} 39. Raxa6 {[%emt 0:00:49] OK} Rxa6 {[%emt 0:00:31]} 40. Rxa6 {[%emt 0:00:04] KR-KR} Rc1 {[%emt 0:00:28] Dreigt te winnen met ...b2. Onnauwkeurig} 41. Rb6 {[%emt 0:00:14]} Rc3 {[%emt 0:00:20] OK} {Wit zou moeten proberen} 42. h5 {[%emt 0:02:29] Fout (0.9)} (42. Rb7+ $16 Kg6 43. Rb6+ Kg7 44. h5) 42... Rd3 $14 {[%emt 0:00:20] OK} 43. f4 {[%emt 0:05:05]} Rd2+ $1 {[%emt 0:00:14] Sterk} 44. Kf3 {[%emt 0:00:04] Hoopt vervolgens op Rb7+. OK} b2 {[%emt 0:00:03] OK} 45. g4 {[%emt 0:00:36]} Rh2 {[%emt 0:00:49] OK} 46. Ke4 {[%emt 0:00:42] Sterke dreiging met Kf5.} Rc2 {[%emt 0:00:24] OK} {Beter is} 47. Ke5 {[%emt 0:00:26] OK} Rc5+ {[%emt 0:00:33]} 48. Kd4 {[%emt 0:00:33] OK} Rc2 {[%emt 0:00:03] OK} {Wit zou moeten spelen} 49. Ke3 {[%emt 0:00:52]} Rc3+ {[%emt 0:01:04]} 50. Kd4 {[%emt 0:00:32] OK} Rc2 {[%emt 0:00:06] OK} 51. Kd3 {[%emt 0:00:22] Fout (0.6)} (51. Kd5 $14) 51... Rg2 $11 {[%emt 0:00:17] Beste (Gemakkelijk)} 52. Ke4 {[%emt 0:00:08] met als doel voor Kf5.} Rc2 {[%emt 0:00:30] blijft gelijk. Fout (0.9)} (52... Rxg4 $11 53. Rxb2 Rh4) 53. g5 {[%emt 0:00:20] Fout (0.9)} (53. Kd5 $16) 53... hxg5 $1 {[%emt 0:01:20] Sterk} 54. fxg5 {[%emt 0:00:08] Rb7+ is de sterke dreiging.} Rc4+ $2 {[%emt 0:00:51][%mdl 8192] [#] Verliest partij (12.8)} (54... Rc5 $11) {Wit aan zet. Enige zet:} 55. Ke5 $2 {[%emt 0:01:12] Gemiste overwinning (12.8)} (55. Kd5 $1 $18 {[%cal Rd5c4]} Rc2 56. Rb7+ Kg8 57. g6) 55... Rc5+ {[%emt 0:00:06] OK} 56. Kf4 {[%emt 0:00:13]} Rc4+ {[%emt 0:00:12] Beste (Gemakkelijk)} 57. Kf3 {[%emt 0:00:18]} Rc3+ {[%emt 0:00:10] Beste (Gemakkelijk)} 58. Ke4 {[%emt 0:00:35] OK} Rc4+ $2 {[%emt 0:00:05][%mdl 8192] [#] en Zwart heeft geen zorgen. Verliest partij (5.4)} (58... Rc5 $11) 59. Kd3 $2 {[%emt 0:00:29] Gemiste overwinning (5.4)} (59. Kd5 $1 $18 {[%cal Rd5c4]} Ra4 60. Rb7+ (60. Rxb2 Ra5+ 61. Ke4 Rxg5 $11) (60. h6+ Kh7 $14) 60... Kg8 61. g6 (61. Rxb2 Ra5+ 62. Kd4 Rxg5 $11)) 59... Rg4 {[%emt 0:02:07] De stelling is in evenwicht.} 60. Rg6+ {[%emt 0:01:07]} Kh7 {[%emt 0:00:18]} 61. Kc2 {[%emt 0:00:18]} Rg2+ {[%emt 0:00:11] OK} 62. Kb1 {[%emt 0:00:05] Beste (Gemakkelijk)} Rh2 {[%emt 0:00:19] OK} 63. Rh6+ {[%emt 0:00:03]} Kg7 {[%emt 0:00:07] OK} 64. Ka2 {[%emt 0:00:13]} Rg2 {[%emt 0:00:12] OK} 65. Rg6+ {[%emt 0:00:52]} Kh7 {[%emt 0:00:08] OK} 66. Kb1 {[%emt 0:00:17]} Rh2 {[%emt 0:00:08] OK} 67. Rh6+ {[%emt 0:00:58] Blunder waarde: Wit=0.39/Zwart=0.39.  Verliest partij:   	---       	Zwart=2      Gemiste overwinning: 	Wit=2      	---        Fout:        	Wit=8      	Zwart=6      Onnauwkeurig:    	Wit=1      	Zwart=4      OK:         	Wit=17     	Zwart=25     Beste:        	Wit=5      	Zwart=5      Sterk:        	---       	Zwart=2      Briljant:      	Wit=1      	---} 1/2-1/2

[Event "ESP-ch Teams Honor 2024"]
[Site "Melilla"]
[Date "2024.10.15"]
[Round "4.7"]
[White "Anton Guijarro, David"]
[Black "Aravindh, Chithambaram VR."]
[Result "1/2-1/2"]
[ECO "B31"]
[WhiteElo "2667"]
[BlackElo "2698"]
[Annotator "TA"]
[PlyCount "70"]
[EventDate "2024.10.11"]
[EventType "team-tourn"]
[EventCountry "ESP"]
[SourceTitle "playchess.com"]
[Source "ChessBase"]
[SourceQuality "1"]
[WhiteTeam "Casablanca"]
[BlackTeam "Solvay"]
[TimeControl "5400+30"]

{[%evp 10,70,17,21,35,39,35,15,10,18,18,12,4,11,7,0,0,0,7,-7,-7,-6,-5,-4,0,0,0,0,0,0,0,0,0,0,0,0,0,0,0,5,7,0,0,0,0,-23,-10,-5,-15,-40,-32,-38,-43,-60,-13,-9,-17,-16,0,0,0,0,0]} 1. e4 {[%emt 0:00:06]} c5 {[%emt 0:00:14]} 2. Nf3 {[%emt 0:00:17]} Nc6 {[%emt 0:00:14]} 3. Bb5 {[%emt 0:00:41]} g6 {[%emt 0:00:19]} 4. Bxc6 {[%emt 0:00:39]} bxc6 {[%emt 0:00:14]} 5. O-O {[%emt 0:00:58]} Bg7 {[%emt 0:00:08]} 6. Re1 {[%emt 0:00:58]} Qc7 {[%emt 0:01:05]} 7. c3 {[%emt 0:12:55][%cal Bc2c3,Bc3d4,Bd4e5][%mdl 32]} d6 {[%emt 0:00:58]} 8. h3 {[%emt 0:00:35]} Nf6 {[%emt 0:00:48]} 9. d4 {[%emt 0:01:06]} cxd4 {[%emt 0:00:13]} 10. cxd4 {[%emt 0:00:06]} O-O {[%emt 0:00:16]} 11. Nc3 {[%emt 0:01:24]} c5 {[%emt 0:00:29]} 12. e5 {[%emt 0:17:00]} dxe5 {[%emt 0:01:09]} 13. dxe5 {[%emt 0:00:05]} Rd8 {[%emt 0:00:08]} 14. Qc2 {[%emt 0:00:55]} Nd5 {[%emt 0:04:47]} 15. Nxd5 {[%emt 0:01:46]} Rxd5 {[%emt 0:00:04]} 16. Be3 {[%emt 0:09:16]} Bb7 {[%emt 0:09:16][%cal Oa8c8]} 17. b4 {[%emt 0:10:07]} Qc6 {[%emt 0:15:44]} 18. Rac1 {[%emt 0:08:55][%cal Re3c5]} Rc8 {[%emt 0:06:57]} ({Reject} 18... Rxe5 19. b5 Qe4 (19... Qxb5 $2 {perishes.} 20. Nxe5 Bxe5 21. Qxc5 $18) 20. Qxe4 Rxe4 21. Rxc5 $14) 19. Bxc5 {[%emt 0:08:00][%cal Oe5e6]} Rxe5 $1 {[%emt 0:01:47]} 20. Qb3 {[%emt 0:03:45] [#] aiming for Be3.} Rxe1+ {[%emt 0:21:08]} 21. Rxe1 {[%emt 0:00:43]} e6 {[%emt 0:00:07]} 22. Bxa7 {[%emt 0:01:39]} Qd7 {[%emt 0:00:12] ...Bxf3 would now be deadly.} 23. Bc5 {[%emt 0:01:46]} Ra8 {[%emt 0:01:31]} 24. a3 {[%emt 0:03:22]} Bd5 {[%emt 0:00:10] A strong pair of Bishops.} 25. Qd3 {[%emt 0:02:06]} Qa4 {[%emt 0:02:06]} 26. Rb1 {[%emt 0:01:48]} h6 {[%emt 0:06:05]} 27. Nd4 {[%emt 0:02:20]} ({Wrong is} 27. b5 $2 Be4 28. Qf1 Bxb1 29. Qxb1 Ra5 $19) 27... Qxa3 {[%emt 0:02:14]} 28. Qxa3 {[%emt 0:00:08]} Rxa3 {[%emt 0:00:04]} 29. Nc2 {[%emt 0:03:02]} Rc3 {[%emt 0:06:15]} 30. Ne3 {[%emt 0:00:32]} Bc6 {[%emt 0:00:07]} 31. Rd1 {[%emt 0:01:47]} Ba4 {[%emt 0:02:34]} (31... g5 $15 {deserves consideration.}) 32. Rd8+ $11 {[%emt 0:04:27] The position is equal.} Kh7 {[%emt 0:00:05]} 33. f4 $1 {[%emt 0:01:03]} Bf6 {[%emt 0:07:54]} 34. Ra8 {[%emt 0:00:49]} Bc6 {[%emt 0:00:05]} 35. Rf8 {[%emt 0:01:00]} Kg7 {[%emt 0:04:48] Weighted Error Value: White=0.04 (flawless) /Black=0.03 (flawless) .  Mistake:       	---       	Black=1      OK:         	White=16    	Black=15     Best:        	---       	Black=3      Strong:       	White=1     	Black=1} 1/2-1/2

[Event "ESP-ch Teams Honor 2024"]
[Site "Melilla"]
[Date "2024.10.15"]
[Round "4.8"]
[White "Ivanchuk, Vasyl"]
[Black "Vallejo Pons, Francisco"]
[Result "1-0"]
[ECO "B33"]
[WhiteElo "2632"]
[BlackElo "2653"]
[Annotator "TA"]
[PlyCount "77"]
[EventDate "2024.10.11"]
[EventType "team-tourn"]
[EventCountry "ESP"]
[SourceTitle "playchess.com"]
[Source "ChessBase"]
[SourceQuality "1"]
[WhiteTeam "Solvay"]
[BlackTeam "Casablanca"]
[TimeControl "5400+30"]

{[%evp 12,77,44,46,42,42,47,45,41,34,47,20,30,33,33,11,3,0,0,4,41,25,46,39,31,28,33,5,32,4,36,32,68,81,529,573,556,512,582,585,575,587,579,484,488,475,500,507,834,327,320,315,307,199,175,203,210,215,445,448,505,513,459,460,6198,6101,4886,4886]} 1. e4 {[%emt 0:00:03]} c5 {[%emt 0:01:39]} 2. Nf3 {[%emt 0:00:31]} e6 {[%emt 0:00:15]} 3. d4 {[%emt 0:00:14]} cxd4 {[%emt 0:00:03]} 4. Nxd4 {[%emt 0:00:03]} Nc6 {[%emt 0:00:07]} 5. Nc3 {[%emt 0:00:11]} Bc5 {[%emt 0:00:24]} 6. Ndb5 {[%emt 0:12:01]} Nf6 {[%emt 0:01:14]} 7. Bf4 {[%emt 0:00:08] Nc7+ is the strong threat.} O-O {[%emt 0:00:51]} 8. Bc7 {[%emt 0:00:44]} Qe7 {[%emt 0:00:18] Strongly threatening ...d5.} 9. Bd6 $1 {[%emt 0:00:03]} Bxd6 {[%emt 0:00:07] White is slightly better.} 10. Qxd6 {[%emt 0:00:05]} Qd8 {[%emt 0:00:26]} 11. O-O-O {[%emt 0:00:15]} a6 {[%emt 0:00:19]} 12. Nd4 {[%emt 0:00:25]} Ne7 {[%emt 0:00:45]} 13. Qg3 {[%emt 0:14:47]} b5 {[%emt 0:20:26]} 14. e5 {[%emt 0:00:09]} Nfd5 {[%emt 0:02:01]} 15. Ne4 {[%emt 0:16:02]} Bb7 {[%emt 0:06:41]} 16. Bd3 {[%emt 0:11:00]} Qc7 {[%emt 0:07:55]} 17. Rhe1 {[%emt 0:09:20]} Nc6 {[%emt 0:10:59]} 18. Nxc6 {[%emt 0:08:43]} (18. Nf3 {seems wilder.} Ncb4 19. a3 Nxd3+ 20. Rxd3 b4 21. Nd4) 18... Bxc6 {[%emt 0:01:43]} 19. f4 {[%emt 0:00:02] Hoping for Nf6+.} f6 {[%emt 0:01:27]} 20. Kb1 {[%emt 0:00:51]} (20. f5 {simplifies} exf5 21. Nd6 fxe5 22. Qxe5 Rf6 23. Nxf5 Qxe5 24. Rxe5 Nf4 25. g3) 20... Kh8 {[%emt 0:13:01]} 21. Nd6 {[%emt 0:01:41]} (21. exf6 {simplifies} Nxf6 22. Qh4 h6 23. Nxf6 Rxf6 24. g3) 21... fxe5 {[%emt 0:03:21]} 22. fxe5 $40 {[%emt 0:00:01][%mdl 128] Threatens to win with Rf1. White wants a kill.} Nb4 $2 {[%emt 0:02:34][%mdl 8192] [#] Loses the game.} (22... Nf4 $16 {is tougher.}) 23. Bxh7 $1 $18 {[%emt 0:07:01][%mdl 512]} Kxh7 {[%emt 0:00:54]} 24. Rd4 {[%emt 0:01:12][%cal Bd1d4,Bd4h4,Bh4h5][%mdl 32]} (24. Qh4+ Kg8 25. Re3 (25. Qxb4 Rf2 $11) 25... Bxg2 26. Qxb4 Rf3 27. Rxf3 Bxf3 $16) 24... Be4 {[%emt 0:07:32]} 25. Qh4+ {[%emt 0:03:56]} (25. Rdxe4 $2 Qxc2+ 26. Ka1 Nd3 $19) 25... Kg8 {[%emt 0:00:01]} 26. Qxe4 {[%emt 0:00:05]} Nd5 {[%emt 0:00:25]} 27. Qd3 {[%emt 0:04:51] aiming for Rh4.} Ne7 {[%emt 0:05:48]} 28. Rh4 {[%emt 0:03:37]} Nf5 {[%emt 0:00:14]} 29. Rh5 {[%emt 0:01:25]} g6 {[%emt 0:00:57] [#]} (29... Qc6 $142 30. Ne4 Qc7) 30. Nxf5 $2 {[%emt 0:04:55]} Rxf5 {[%emt 0:00:58]} 31. g4 {[%emt 0:00:53][%cal Bg2g4,Bg4f5,Bf5f6,Bf6f7][%mdl 32]} Qc4 {[%emt 0:03:15]} 32. Qxc4 {[%emt 0:00:13]} (32. Rxf5 Qxd3 33. cxd3 exf5 $16) 32... bxc4 {[%emt 0:00:07]} 33. gxf5 {[%emt 0:00:31]} gxh5 {[%emt 0:00:02][%mdl 4096] Endgame. KR-KR} 34. Rg1+ {[%emt 0:00:11]} Kh7 $2 {[%emt 0:01:45]} (34... Kf8 35. fxe6 Ke7) 35. f6 {[%emt 0:00:32] White is clearly winning.} Rc8 {[%emt 0:00:40]} 36. c3 {[%emt 0:01:04]} (36. Rg7+ Kh6 37. Rg1 (37. Rxd7 Rc5 $18) 37... c3 $18) 36... Rc5 {[%emt 0:01:01]} 37. Rg7+ {[%emt 0:00:21]} (37. f7 Rc8 $11) 37... Kh6 {[%emt 0:00:03] [#]} (37... Kh8 $142 38. Rg5 (38. Rxd7 Kg8 $18) 38... h4) 38. Rg8 $1 {[%emt 0:00:23] f7 would kill now.} ({Less strong is} 38. Rxd7 Rxe5 39. a4 Kg6 $16) 38... Rxe5 {[%emt 0:00:39]} 39. f7 {[%emt 0:00:04] Weighted Error Value: White=0.31/Black=0.46.  Loses game:     	---       	Black=1      Mistake:       	White=1     	Black=3      Inaccurate:     	White=4     	Black=4      OK:         	White=13    	Black=8      Best:        	White=4     	Black=4      Strong:       	White=2     	---        Brilliant:      	White=1     	---} 1-0